bitfinex-derivatives/quotes_ETHF0:USTF0_20250217
["timestamp","ask_amount","ask_price","bid_price","bid_amount"]
[1739815204600,3.2078,2733.2,2732.4,3.2078]
[1739815204793,0.73169,2733.0,2732.6,0.73178]
[1739815204995,3.2078,2733.0,2732.4,3.2078]
[1739815205305,0.73191,2732.2,2732.1,3.2078]
[1739815205496,3.32791,2732.2,2732.1,3.2078]
[1739815205696,7.6789026,2732.2,2732.1,3.2078]
[1739815205898,12.9469926,2732.2,2731.1,3.2078]
[1739815206098,0.73211,2731.5,2731.1,3.56425204]
[1739815206397,2.596,2731.4,2731.1,3.56425204]
[1739815206603,2.596,2731.4,2731.2,0.73216]
[1739815206897,10.1547926,2731.4,2730.5,3.2078]
[1739815207104,0.54438476,2731.6,2731.3,0.73213]
[1739815207298,0.54438476,2731.6,2731.3,0.73214]
[1739815207602,0.00548476,2731.6,2731.5,0.73209]
[1739815208005,2.60148476,2731.6,2731.1,3.2078]
[1739815208904,1.27672,2731.5,2731.1,3.2078]
[1739815209100,4.3509926,2731.2,2730.1,3.2078]
[1739815209307,4.3509926,2731.2,2730.4,0.73238]
[1739815209308,0.73225,2731.0,2730.4,0.73238]
[1739815209497,2.597,2731.1,2730.4,0.73238]
[1739815209704,0.73226,2730.9,2730.5,3.2078]
[1739815209907,2.597,2731.1,2730.5,3.2078]
[1739815210108,0.73223,2731.0,2730.5,3.2078]
[1739815210404,4.3509926,2730.9,2730.2,3.2078]
[1739815210604,0.5494,2730.8,2730.3,0.73241]
[1739815210808,2.597,2731.0,2730.5,3.2078]
[1739815211007,2.597,2731.0,2730.7,0.7323]
[1739815211201,2.597,2731.0,2730.2,3.2078]
[1739815211406,2.597,2731.0,2730.5,3.2078]
[1739815211797,3.2078,2731.4,2730.6,0.73233]
[1739815212106,0.73219,2731.2,2730.6,0.73232]
[1739815212304,2.597,2731.3,2730.8,0.73226]
[1739815212305,3.32916,2731.3,2730.8,0.73226]
[1739815212504,0.73218,2731.2,2730.5,3.2078]
[1739815212802,2.597,2731.1,2730.9,0.73224]
[1739815213006,3.2078,2731.4,2730.5,3.2078]
[1739815213212,2.597,2731.3,2730.8,3.2078]
[1739815213602,0.73224,2731.0,2730.6,0.5402]
[1739815213798,3.93994,2731.4,2730.9,0.73225]
[1739815214004,2.597,2731.3,2730.7,3.2078]
[1739815214409,3.32916,2731.3,2730.7,3.2078]
[1739815214599,2.597,2731.3,2730.7,3.2078]
[1739815215103,3.2078,2731.4,2731.1,0.7322]
[1739815215305,2.598,2731.3,2730.7,3.2078]
[1739815215507,0.73219,2731.2,2730.8,0.73227]
[1739815215712,0.73225,2731.0,2730.6,0.5402]
[1739815215910,2.597,2730.9,2730.6,0.5402]
[1739815216113,2.597,2730.9,2730.8,0.73227]
[1739815216310,2.597,2730.9,2730.6,0.5402]
[1739815216513,2.597,2730.9,2730.7,0.7323]
[1739815216712,2.597,2730.9,2730.4,3.2078]
[1739815216913,0.73229,2730.8,2730.5,0.73235]
[1739815217206,0.73229,2730.8,2730.5,0.73234]
[1739815217406,2.597,2730.9,2730.8,0.73228]
[1739815217608,2.597,2730.9,2730.6,0.73232]
[1739815217807,3.32926,2730.9,2730.6,0.73232]
[1739815218015,2.597,2730.9,2730.4,3.2078]
[1739815218407,2.597,2730.9,2730.8,0.73228]
[1739815219317,3.2078,2731.1,2730.7,3.2078]
[1739815219517,2.598,2731.1,2731.0,0.73223]
[1739815220012,2.598,2731.1,2730.3,4.3509926]
[1739815220013,0.73227,2730.9,2730.3,3.2078]
[1739815220217,2.598,2731.1,2730.3,3.2078]
[1739815220509,3.2078,2731.0,2730.3,3.2078]
[1739815220714,7.5587926,2731.0,2730.3,3.2078]
[1739815220912,7.5587926,2731.0,2730.3,3.9402]
[1739815221113,7.5587926,2731.0,2730.3,3.2078]
[1739815221316,9.3893726,2731.0,2730.3,3.2078]
[1739815221818,7.5587926,2731.0,2730.3,3.2078]
[1739815222011,3.33026,2730.9,2730.3,3.2078]
[1739815222208,7.5587926,2730.7,2730.3,3.2078]
[1739815222408,7.5587926,2730.4,2729.2,3.2078]
[1739815222712,4.3509926,2729.4,2729.2,3.2078]
[1739815222915,4.3509926,2729.4,2728.4,3.2078]
[1739815223108,3.1446,2729.3,2728.4,3.2078]
[1739815223314,3.1446,2729.3,2728.7,3.2078]
[1739815223819,3.1446,2729.3,2728.9,0.73278]
[1739815224115,7.5587926,2729.1,2728.3,4.28794032]
[1739815224413,7.5587926,2729.1,2728.4,0.7329]
[1739815224613,4.3509926,2728.8,2727.7,3.55601757]
[1739815224910,3.2078,2729.0,2728.3,3.2078]
[1739815225111,0.00549501,2728.5,2728.3,3.2078]
[1739815225516,0.00549501,2728.5,2727.9,3.2078]
[1739815226311,0.73841501,2728.5,2727.9,3.2078]
[1739815226518,2.599,2728.4,2728.0,0.73303]
[1739815227314,2.599,2728.4,2728.1,0.733]
[1739815227615,0.00549501,2728.5,2727.9,3.2078]
[1739815227816,4.3509926,2728.3,2727.6,3.2078]
[1739815229123,4.3509926,2728.3,2727.7,0.73311]
[1739815229321,5.0839426,2728.3,2727.6,3.94093]
[1739815229523,4.3509926,2728.3,2727.7,0.73311]
[1739815229713,0.561,2728.4,2727.9,3.2078]
[1739815229914,0.00549501,2728.5,2727.9,3.2078]
[1739815230615,4.3509926,2728.1,2727.6,3.2078]
[1739815230816,3.34204,2728.0,2727.6,3.2078]
[1739815231022,2.609,2728.0,2727.6,3.2078]
[1739815231519,2.609,2728.0,2727.6,3.94092]
[1739815231720,2.609,2728.0,2727.6,3.2078]
[1739815231912,4.9121926,2728.4,2727.6,3.2078]
[1739815232116,0.00549501,2728.5,2728.0,3.2078]
[1739815232312,2.608,2728.4,2728.3,0.73295]
[1739815232514,0.00549501,2728.5,2728.4,0.73293]
[1739815233015,2.615,2729.1,2728.3,3.2078]
[1739815233322,2.615,2729.1,2728.0,0.548]
[1739815233323,3.2078,2729.0,2728.0,3.7558]
[1739815233519,4.3509926,2728.8,2728.0,3.7558]
[1739815233720,2.645,2728.7,2728.0,3.7558]
[1739815234217,0.00549501,2728.6,2728.1,0.00549501]
[1739815234621,0.73291,2728.5,2728.1,0.00549501]
[1739815234917,0.73295,2728.4,2728.1,0.00549501]
[1739815235124,0.00549501,2728.6,2728.1,0.00549501]
[1739815235420,0.73295,2728.4,2728.1,0.00549501]
[1739815235618,0.73298,2728.2,2728.1,0.00549501]
[1739815235815,3.37198,2728.2,2728.1,0.00549501]
[1739815236023,7.7229726,2728.2,2728.1,0.00549501]
[1739815236724,6.9899926,2728.2,2728.1,0.00549501]
[1739815237426,7.7229726,2728.2,2728.1,0.00549501]
[1739815237628,8.3006726,2728.2,2728.1,0.00549501]
[1739815238125,7.5676926,2728.2,2728.1,0.00549501]
[1739815238325,8.3006726,2728.2,2728.1,0.00549501]
[1739815238519,7.5676926,2728.2,2728.1,0.00549501]
[1739815238720,7.56541942,2728.2,2728.1,0.00549501]
[1739815239021,8.29839942,2728.2,2728.1,0.00549501]
[1739815239221,7.56541942,2728.2,2727.3,3.2078]
[1739815239526,4.3509926,2727.9,2727.3,3.20175883]
[1739815239723,0.73312,2727.7,2727.3,3.20175883]
[1739815240218,2.632,2727.8,2727.3,3.20175883]
[1739815240424,3.3651,2727.8,2727.3,3.93496883]
[1739815240614,0.73312,2727.7,2727.3,3.93496883]
[1739815240817,0.73315,2727.6,2727.3,3.20175883]
[1739815241224,0.73315,2727.6,2726.6,2.40079]
[1739815241225,4.3509926,2727.6,2727.0,3.2078]
[1739815241419,0.73332,2727.0,2726.4,3.2078]
[1739815241619,4.3509926,2726.6,2726.4,3.2078]
[1739815241823,6.9949926,2726.9,2726.4,3.2078]
[1739815242021,6.9949926,2726.9,2726.5,0.73342]
[1739815242218,0.00549501,2727.0,2726.9,0.73333]
[1739815243731,0.00549501,2727.0,2726.8,1.1037]
[1739815243932,0.00549501,2727.0,2726.9,0.73333]
[1739815245019,0.00549501,2727.0,2726.8,0.5688]
[1739815245224,0.73337,2726.8,2726.4,1.30955]
[1739815245532,0.73337,2726.8,2726.4,0.5761]
[1739815245726,0.73337,2726.8,2726.5,0.73343]
[1739815246030,0.73337,2726.8,2726.5,0.73344]
[1739815246326,4.3509926,2726.9,2726.3,3.2078]
[1739815246527,0.73342,2726.6,2726.3,3.2078]
[1739815246727,4.3509926,2726.9,2726.3,3.2078]
[1739815246930,0.73337,2726.8,2726.5,0.73341]
[1739815247128,0.73337,2726.8,2726.6,0.7334]
[1739815247328,0.73337,2726.8,2726.3,3.2078]
[1739815247628,4.3509926,2726.9,2726.6,0.7334]
[1739815247825,2.64549501,2727.0,2726.6,3.2078]
[1739815248128,0.00549501,2727.0,2726.9,3.2078]
[1739815248326,0.00549501,2727.0,2726.9,3.94113]
[1739815249827,0.00549501,2727.0,2726.4,3.2078]
[1739815250227,0.00549501,2727.0,2726.3,1.0829]
[1739815250228,0.00549501,2727.0,2726.9,0.73333]
[1739815250637,0.00549501,2727.0,2726.9,1.31243]
[1739815251030,0.00549501,2727.0,2726.9,0.73333]
[1739815251628,4.35648761,2727.0,2726.4,3.2078]
[1739815251834,0.73342,2726.6,2726.4,3.2078]
[1739815252034,2.664,2726.8,2726.4,3.2078]
[1739815252234,0.73344,2726.5,2726.4,3.2078]
[1739815252626,0.73352,2726.2,2726.0,3.2078]
[1739815253020,2.665,2726.3,2726.1,0.73354]
[1739815253235,3.39849,2726.3,2726.0,3.94136]
[1739815253435,2.665,2726.3,2726.0,3.2078]
[1739815253825,2.665,2726.3,2725.7,3.2078]
[1739815254026,0.73358,2726.0,2725.7,3.2078]
[1739815254229,2.663,2725.9,2725.3,3.2078]
[1739815254739,4.3509926,2726.4,2726.1,0.73354]
[1739815254936,2.664,2726.3,2726.2,0.73352]
[1739815255238,2.665,2726.3,2726.2,3.2078]
[1739815255431,2.665,2726.3,2725.7,3.2078]
[1739815255637,4.3509926,2726.1,2725.2,6.4348]
[1739815255838,4.3509926,2726.1,2725.5,3.2078]
[1739815256031,0.5796,2726.2,2725.5,3.2078]
[1739815256232,0.73356,2726.1,2725.6,0.73365]
[1739815256527,3.2078,2725.7,2723.9,3.2078]
[1739815256726,3.2078,2725.7,2723.3,1.43941553]
[1739815256727,7.5587926,2724.1,2723.3,4.64721553]
[1739815256927,4.3509926,2723.9,2723.3,3.36470708]
[1739815257133,2.693,2724.0,2723.3,3.36470708]
[1739815257641,4.3509926,2723.4,2723.3,0.15690708]
[1739815257840,2.742,2723.4,2723.1,10.39519936]
[1739815258032,2.742,2723.3,2723.1,10.39519936]
[1739815258336,3.2078,2723.2,2723.1,10.39519936]
[1739815258634,5.9678,2723.2,2723.1,10.39519936]
[1739815258833,2.76,2723.2,2723.1,10.39519936]
[1739815259038,5.9678,2723.2,2723.1,10.39519936]
[1739815259231,5.9678,2723.2,2722.6,16.50344288]
[1739815259232,11.9678,2723.2,2722.6,16.50344288]
[1739815259431,11.9678,2723.2,2722.6,0.97765263]
[1739815259432,5.0854526,2722.7,2722.6,0.97765263]
[1739815259638,4.3509926,2722.7,2722.3,17.40946478]
[1739815259838,2.807,2722.6,2722.4,3.67280034]
[1739815260135,2.829,2723.0,2722.5,3.67280034]
[1739815260336,2.842,2723.0,2722.7,3.67280034]
[1739815260533,2.842,2723.0,2722.9,3.67280034]
[1739815261041,2.86650519,2723.5,2722.9,3.67280034]
[1739815261341,2.86650519,2723.5,2723.4,3.67280034]
[1739815261534,6.07430519,2723.5,2723.1,3.67280034]
[1739815261838,6.07430519,2723.5,2722.4,3.67280034]
[1739815261839,3.2078,2723.2,2722.4,3.67280034]
[1739815262034,7.99284326,2722.8,2722.3,3.67280034]
[1739815262239,3.2078,2722.5,2722.0,0.00301861]
[1739815262541,3.2078,2722.2,2722.1,3.67280034]
[1739815262743,6.0858,2722.2,2722.0,0.00301861]
[1739815263034,0.73472,2721.8,2720.9,0.73494]
[1739815263234,0.73484,2721.3,2721.1,3.67280034]
[1739815263431,2.888,2721.2,2720.5,0.5806]
[1739815263627,3.2078,2721.1,2721.0,3.67280034]
[1739815263832,2.894,2721.2,2721.1,3.67280034]
[1739815264239,7.99284326,2721.4,2721.1,3.67280034]
[1739815264443,2.955,2721.2,2720.4,17.013667]
[1739815264737,0.00550519,2721.5,2721.3,3.67280034]
[1739815264933,3.2078,2722.1,2721.9,0.67829515]
[1739815265233,4.78504326,2722.0,2721.5,0.67829515]
[1739815265437,4.78504326,2722.0,2721.0,3.2078]
[1739815265438,3.2078,2722.0,2721.0,3.2078]
[1739815265633,3.2078,2722.1,2721.3,0.67829515]
[1739815265834,3.2078,2721.7,2720.7,3.2078]
[1739815266037,7.99284326,2721.4,2721.0,0.67829515]
[1739815266337,3.173,2721.3,2721.0,0.67829515]
[1739815266533,3.173,2721.3,2720.9,0.00550519]
[1739815266732,3.173,2721.3,2720.9,0.68380034]
[1739815266935,36.3,2721.2,2720.9,0.68380034]
[1739815267341,3.2078,2721.7,2721.1,0.67829515]
[1739815267634,3.181,2721.5,2720.9,0.00550519]
[1739815267837,4.78504326,2721.0,2718.4,1.83904]
[1739815268044,36.3,2721.4,2717.5,7.8]
[1739815268045,7.99284326,2720.1,2718.6,3.2078]
[1739815268238,23.55,2720.9,2718.4,3.2078]
[1739815268239,4.78504326,2719.1,2718.4,3.2078]
[1739815268431,39.364,2719.1,2718.4,3.2078]
[1739815268743,47.72484326,2719.1,2717.9,3.2078]
[1739815268943,47.72484326,2719.1,2718.4,0.67829515]
[1739815269243,3.2078,2718.5,2716.7,3.2078]
[1739815269539,4.78504326,2716.8,2716.0,3.2078]
[1739815269731,6.5508,2717.3,2716.7,3.2078]
[1739815269931,0.73565,2718.3,2717.8,0.67829515]
[1739815269932,6.5688,2717.9,2717.8,0.67829515]
[1739815270235,3.2078,2719.2,2717.8,3.2078]
[1739815270435,3.85379502,2722.2,2719.2,0.67829515]
[1739815270436,3.2078,2719.7,2719.2,0.67829515]
[1739815270646,3.2078,2720.1,2719.8,0.67829515]
[1739815270834,3.2078,2720.0,2719.7,0.67829515]
[1739815271034,3.2078,2720.0,2719.4,0.67829515]
[1739815271340,0.00551562,2720.2,2719.9,0.67829515]
[1739815271640,0.00551562,2720.2,2720.1,0.67829515]
[1739815271840,0.00551562,2720.2,2718.5,3.418]
[1739815271841,3.42851562,2720.2,2719.4,0.67829515]
[1739815272037,3.2078,2719.6,2718.0,3.2078]
[1739815272239,3.2078,2718.3,2717.0,3.2078]
[1739815272431,7.99284326,2718.0,2717.0,3.2078]
[1739815272631,8.36084326,2718.0,2717.0,3.2078]
[1739815272839,3.2078,2718.5,2717.6,3.2078]
[1739815273046,0.00551562,2717.8,2717.6,3.2078]
[1739815273244,0.00551562,2717.8,2717.1,3.2078]
[1739815273441,0.00551562,2717.8,2717.4,3.2078]
[1739815273739,0.00551562,2717.8,2717.7,3.94361]
[1739815273938,0.00551562,2717.8,2717.4,3.2078]
[1739815274437,0.00551562,2717.8,2717.7,0.73581]
[1739815274643,3.21331562,2717.8,2716.4,3.2078]
[1739815274845,3.2078,2717.6,2716.7,3.94386]
[1739815275142,0.00551562,2717.8,2717.7,0.73581]
[1739815275346,3.2078,2719.0,2718.2,0.73568]
[1739815275544,3.2078,2719.7,2718.9,3.2078]
[1739815275748,3.2078,2720.3,2719.2,3.2078]
[1739815275940,3.564,2720.4,2719.3,3.2078]
[1739815276148,3.2078,2719.6,2719.0,3.2078]
[1739815276345,3.2078,2720.5,2719.0,3.2078]
[1739815276551,0.00551562,2719.6,2719.2,3.2078]
[1739815276853,3.2078,2720.2,2719.2,3.2078]
[1739815277056,36.1,2721.3,2719.0,0.00551562]
[1739815277057,3.2078,2719.4,2719.0,0.00551562]
[1739815277253,3.2078,2719.1,2717.7,3.2078]
[1739815277452,3.2078,2718.4,2717.7,3.2078]
[1739815277654,3.2078,2719.5,2718.1,3.2078]
[1739815277861,6.8128,2719.6,2718.4,3.2078]
[1739815278055,6.8128,2719.6,2718.8,3.2078]
[1739815278260,6.8128,2719.6,2718.5,1.0878]
[1739815278551,0.368,2719.9,2718.9,0.00551562]
[1739815278552,0.00551562,2719.5,2718.9,0.00551562]
[1739815278753,0.00551562,2719.5,2719.0,3.2078]
[1739815279058,0.00551562,2719.5,2719.4,0.73535]
[1739815279455,0.00551562,2719.5,2719.4,6.73535]
[1739815279956,5.62e-06,2719.5,2719.4,6.73535]
[1739815280257,3.2078,2721.5,2720.6,0.73501]
[1739815280453,3.2078,2721.5,2720.5,3.2078]
[1739815280754,39.3078,2721.5,2720.1,3.2078]
[1739815280948,3.2078,2721.2,2720.1,3.2078]
[1739815281152,3.603,2721.2,2720.9,0.73493]
[1739815281350,0.00551562,2720.9,2720.4,0.00551562]
[1739815281549,0.00551562,2720.9,2720.8,0.73497]
[1739815281751,0.00551562,2720.9,2720.6,3.94283]
[1739815281950,0.00551562,2720.9,2720.4,0.00551562]
[1739815282457,3.21331562,2720.9,2720.4,0.00551562]
[1739815283350,3.2078,2720.5,2720.4,0.00551562]
[1739815283551,0.00551562,2720.9,2720.4,0.00551562]
[1739815283757,3.67064,2724.0,2720.4,0.00551562]
[1739815283758,3.2078,2721.8,2721.3,0.73481]
[1739815283957,3.2078,2721.8,2721.4,0.73481]
[1739815284259,3.2078,2721.5,2720.7,3.2078]
[1739815284457,3.2078,2721.7,2720.5,3.2078]
[1739815284655,3.2078,2721.7,2720.4,0.00551562]
[1739815284656,3.6,2721.6,2721.0,3.2078]
[1739815284857,3.596,2722.1,2721.7,0.73471]
[1739815285063,0.00551562,2721.6,2721.3,3.2078]
[1739815285359,0.00551562,2721.6,2720.8,3.2078]
[1739815285655,0.00551562,2721.6,2720.5,20.378]
[1739815285656,0.00551562,2721.6,2720.9,0.73494]
[1739815285863,0.00551562,2721.6,2721.5,0.73478]
[1739815286360,0.85391857,3695.0,2721.5,6.73478]
[1739815286361,3.2078,2722.6,2721.5,6.73478]
[1739815286555,3.2078,2722.3,2721.6,3.2078]
[1739815287061,3.2078,2723.1,2721.7,5.04463]
[1739815287363,3.2078,2722.9,2721.7,3.2078]
[1739815287553,4.78504326,2723.1,2722.3,0.73455]
[1739815287554,3.2078,2722.6,2722.3,0.73455]
[1739815287754,3.2078,2722.6,2722.1,0.00551562]
[1739815287964,0.00551562,2722.7,2722.6,0.73449]
[1739815288367,3.2078,2723.4,2722.4,3.59]
[1739815288572,3.2078,2723.1,2722.2,3.59]
[1739815288966,7.99284326,2723.4,2723.0,0.73437]
[1739815289262,7.99284326,2723.4,2722.2,5.42644]
[1739815289263,3.2078,2723.4,2722.2,5.42644]
[1739815289465,3.2078,2723.1,2722.2,3.584]
[1739815289664,3.21331562,2723.1,2722.2,3.584]
[1739815290065,3.21331562,2723.1,2722.7,0.73444]
[1739815290369,3.2078,2722.8,2722.0,0.5654]
[1739815290565,3.2078,2722.5,2722.0,0.5654]
[1739815290770,6.7798,2722.9,2722.1,0.00551562]
[1739815290963,3.2078,2722.9,2722.3,3.2078]
[1739815291167,3.2078,2722.9,2722.8,0.73441]
[1739815291362,3.2078,2722.9,2722.1,0.00551562]
[1739815291565,3.2078,2722.4,2722.3,0.73457]
[1739815291768,3.2078,2722.4,2722.1,0.00551562]
[1739815292069,3.2078,2722.4,2722.3,0.73457]
[1739815292375,3.2078,2723.0,2722.1,0.00551562]
[1739815292667,3.2078,2722.7,2722.5,0.73449]
[1739815292871,3.2078,2722.7,2722.1,0.74011562]
[1739815293068,3.2078,2722.4,2722.1,0.00551562]
[1739815293368,3.2078,2722.4,2722.2,0.73458]
[1739815293565,3.2078,2722.4,2722.1,0.00551562]
[1739815293769,3.2078,2722.4,2722.3,0.73457]
[1739815294275,6.7758,2722.7,2722.1,0.00551562]
[1739815294871,3.2078,2722.4,2722.1,0.74011562]
[1739815295170,0.73458,2722.3,2722.1,0.00551562]
[1739815295373,8.33304326,2722.2,2722.1,0.00551562]
[1739815295575,9.06763326,2722.2,2722.1,0.00551562]
[1739815295771,9.06763326,2722.2,2721.6,0.73475]
[1739815296071,3.2078,2721.7,2721.6,0.73476]
[1739815297369,3.2078,2722.1,2722.0,0.73465]
[1739815297579,3.2078,2722.1,2721.4,0.00551562]
[1739815297779,3.2078,2721.7,2721.4,0.00551562]
[1739815298073,3.2078,2722.0,2721.4,0.00551562]
[1739815298272,3.2078,2721.7,2721.5,0.73478]
[1739815298479,3.2078,2721.7,2721.6,0.73476]
[1739815298670,6.7338,2722.0,2721.4,0.00551562]
[1739815298870,6.7338,2722.0,2721.9,0.73468]
[1739815299073,3.2078,2722.0,2721.9,0.73468]
[1739815299467,3.2078,2722.0,2721.4,0.00551562]
[1739815299869,3.2078,2722.0,2721.5,1.83697]
[1739815300071,3.2078,2720.6,2718.8,3.2078]
[1739815300278,3.2078,2719.4,2718.7,3.2078]
[1739815300473,3.2078,2719.4,2719.2,0.73539]
[1739815300672,3.2078,2719.4,2718.6,3.2078]
[1739815301069,3.2078,2719.1,2718.6,0.73556]
[1739815301274,3.2078,2719.1,2718.7,0.00551562]
[1739815301467,6.7948,2719.1,2718.7,0.00551562]
[1739815301671,0.00551562,2719.3,2718.7,0.00551562]
[1739815301879,0.00551562,2719.3,2718.9,3.2078]
[1739815302074,0.00551562,2719.3,2719.2,0.73541]
[1739815302479,0.00551562,2719.3,2719.2,9.94321]
[1739815302673,3.2078,2720.1,2719.2,9.2078]
[1739815302878,3.2078,2719.8,2719.2,3.2078]
[1739815303478,3.2078,2719.8,2719.2,9.2078]
[1739815303684,3.2078,2719.8,2719.7,0.73527]
[1739815303881,1.83714,2721.3,2719.2,9.2078]
[1739815303882,3.2078,2720.6,2720.2,0.73513]
[1739815304085,3.2078,2720.6,2719.9,3.2078]
[1739815304271,3.2078,2720.3,2719.7,0.5465]
[1739815304475,3.598,2721.1,2719.3,3.598]
[1739815304476,3.2078,2720.2,2719.3,3.598]
[1739815304673,0.73524,2719.9,2719.0,0.569]
[1739815304877,3.2078,2719.8,2719.1,0.73543]
[1739815305275,0.00551562,2719.7,2719.2,0.00551562]
[1739815305884,3.2078,2719.5,2719.2,0.00551562]
[1739815306578,3.2078,2719.5,2719.2,0.74091562]
[1739815307085,3.2078,2719.5,2719.3,0.73536]
[1739815307282,3.2078,2719.5,2719.2,0.00551562]
[1739815307483,3.2078,2719.5,2719.3,0.73536]
[1739815307685,3.2078,2719.5,2719.4,0.73535]
[1739815307983,3.2078,2719.5,2719.2,0.00551562]
[1739815307984,3.2078,2719.5,2719.2,0.74091562]
[1739815308180,3.2078,2719.5,2719.4,0.73535]
[1739815308574,3.2078,2719.5,2719.2,0.00551562]
[1739815308987,3.2078,2719.5,2719.4,0.73535]
[1739815309482,0.00551562,2719.7,2719.5,0.7353]
[1739815309682,0.00551562,2719.7,2719.3,3.2078]
[1739815309683,0.00551562,2719.7,2719.6,0.7353]
[1739815309979,0.00551562,2719.7,2719.3,3.2078]
[1739815310172,0.00551562,2719.7,2719.6,0.7353]
[1739815310373,0.00551562,2719.7,2719.2,0.00551562]
[1739815310571,3.2078,2719.4,2719.3,0.73538]
[1739815310775,0.00551562,2719.7,2719.3,0.73538]
[1739815310776,0.00551562,2719.7,2719.6,0.7353]
[1739815311178,0.00551562,2719.7,2719.6,6.0]
[1739815311385,0.00551562,2719.7,2719.6,6.7353]
[1739815311581,0.00551562,2719.7,2719.6,0.7353]
[1739815312184,0.00551562,2719.7,2719.3,3.94318]
[1739815312380,0.00551562,2719.7,2719.3,3.2078]
[1739815312583,3.2078,2719.5,2719.2,0.00551562]
[1739815313180,3.20430905,2719.5,2719.2,0.00551562]
[1739815313384,0.73538,2719.3,2719.2,0.00551562]
[1739815313577,3.54,2719.3,2717.9,3.2078]
[1739815313778,3.2078,2718.8,2718.0,3.54]
[1739815313978,3.2078,2718.8,2718.7,0.73554]
[1739815314183,3.2078,2718.8,2718.6,0.73557]
[1739815314386,3.2078,2718.8,2718.1,1.83926]
[1739815314575,3.54,2719.3,2718.0,3.54]
[1739815314576,3.2078,2718.3,2718.0,3.54]
[1739815314781,3.2078,2718.7,2718.2,0.74118562]
[1739815315085,3.2078,2718.4,2718.3,0.73565]
[1739815315689,3.2078,2718.4,2718.2,0.00551562]
[1739815316280,0.73565,2718.3,2718.2,0.00551562]
[1739815316682,3.2078,2718.4,2718.2,0.00551562]
[1739815317293,3.21331562,2718.7,2718.2,0.00551562]
[1739815317783,0.00551562,2718.7,2718.2,0.00551562]
[1739815317988,0.00551562,2718.7,2718.6,0.73557]
[1739815318184,4.78504326,2720.1,2718.3,3.553]
[1739815318185,3.2078,2719.2,2718.5,3.2078]
[1739815318386,3.2078,2718.6,2718.3,3.553]
[1739815318589,3.2078,2718.8,2718.2,0.00551562]
[1739815318886,4.78504326,2719.3,2718.2,0.00551562]
[1739815318887,3.2078,2719.1,2718.2,0.00551562]
[1739815319287,3.2078,2718.8,2718.2,0.00551562]
[1739815319489,3.2078,2718.8,2718.5,0.73559]
[1739815319693,0.00551562,2718.9,2718.8,0.73551]
[1739815320293,0.00551562,2718.9,2718.2,0.00551562]
[1739815320491,0.00551562,2718.9,2718.8,0.73551]
[1739815320683,0.00551562,2718.9,2718.3,3.92617]
[1739815320883,3.21331562,2718.9,2718.6,0.73556]
[1739815321083,0.00551562,2718.9,2718.8,0.73551]
[1739815321289,0.00551562,2718.9,2718.8,6.73551]
[1739815321989,0.00551562,2718.9,2718.8,6.0]
[1739815322183,3.21331562,2718.9,2718.2,0.00551562]
[1739815322383,3.2078,2718.6,2718.2,0.00551562]
[1739815322587,3.2078,2718.6,2718.4,0.7356]
[1739815322791,3.2078,2718.6,2718.2,0.00551562]
[1739815323396,3.2078,2718.3,2718.2,0.00551562]
[1739815323894,3.94345,2718.3,2718.2,0.00551562]
[1739815324095,3.94345,2718.3,2717.1,3.792]
[1739815324096,0.73573,2718.1,2717.1,3.792]
[1739815324293,3.2078,2717.7,2717.1,3.792]
[1739815324493,3.2078,2717.7,2717.4,0.73588]
[1739815324691,3.2078,2717.7,2717.6,0.73584]
[1739815324900,3.2078,2717.7,2717.4,0.73588]
[1739815325096,3.2078,2717.7,2717.5,0.73586]
[1739815325296,3.2078,2717.7,2717.6,0.73584]
[1739815326189,3.2078,2717.7,2717.6,6.73584]
[1739815326395,3.2078,2718.5,2717.6,6.0]
[1739815326591,3.2078,2718.5,2718.4,0.73562]
[1739815326893,3.2078,2718.5,2717.8,3.519]
[1739815327295,3.2078,2718.5,2718.4,0.73562]
[1739815327899,3.21331562,2718.9,2718.5,0.73557]
[1739815328396,0.00551562,2718.9,2718.8,0.73551]
[1739815328693,3.21331562,2718.9,2718.1,3.85835939]
[1739815328889,3.2078,2718.5,2718.2,0.73566]
[1739815329089,0.00551562,2718.9,2718.7,0.73554]
[1739815329387,0.00551562,2718.9,2718.6,0.73555]
[1739815329585,3.2078,2718.8,2717.8,6.7188]
[1739815329787,3.2078,2718.1,2717.5,3.508]
[1739815329992,3.2078,2718.1,2717.4,3.508]
[1739815330401,3.2078,2718.1,2717.8,0.73577]
[1739815330597,3.2078,2718.1,2717.4,3.508]
[1739815330794,1.83893,2718.6,2717.3,0.00551562]
[1739815330795,3.2078,2717.7,2717.3,0.00551562]
[1739815330993,3.2078,2718.7,2717.6,3.2078]
[1739815331195,3.2078,2718.4,2717.3,3.21331562]
[1739815331489,0.5794,2718.5,2717.3,3.21331562]
[1739815331490,3.2078,2717.8,2717.3,3.21331562]
[1739815331900,0.5794,2718.5,2717.3,0.00551562]
[1739815331901,3.2078,2717.5,2717.3,0.00551562]
[1739815333001,3.2078,2717.5,2717.4,0.73589]
[1739815333195,3.2078,2717.8,2717.3,0.00551562]
[1739815333596,3.2078,2717.8,2717.7,0.73581]
[1739815333905,3.2078,2717.8,2717.3,0.00551562]
[1739815334201,3.2078,2717.5,2717.3,0.00551562]
[1739815334499,0.73589,2717.4,2717.3,0.00551562]
[1739815334699,0.5663,2717.4,2716.9,0.01493]
[1739815334906,3.2078,2717.1,2716.9,0.01493]
[1739815335298,3.2078,2717.1,2716.0,3.2078]
[1739815335600,3.2078,2716.3,2715.6,3.2078]
[1739815335796,3.2078,2716.4,2715.8,0.73631]
[1739815336005,0.00551562,2716.2,2715.8,0.73631]
[1739815336200,3.2078,2716.0,2715.7,0.00551562]
[1739815336402,0.00551562,2716.2,2716.1,0.73624]
[1739815336606,0.00551562,2716.2,2715.0,0.33282977]